[Event "Early-Titled-Tuesday-Blitz-May-14-2024"]
[Site "Chess.com"]
[Date "2024.05.14"]
[Round "5"]
[White "MITerryble"]
[Black "TigrVShlyape"]
[Result "1-0"]
[WhiteElo "3053"]
[BlackElo "2952"]
[TimeControl "180+1"]
[EndTime "8:59:17 PDT"]
[Termination "MITerryble won by checkmate"]

1. Nf3 {[%clk 0:02:59.7]} 1... Nf6 {[%clk 0:02:55.4]} 2. d4 {[%clk 0:02:55.6]}
2... d5 {[%clk 0:02:55.2]} 3. c4 {[%clk 0:02:54.7]} 3... c6 {[%clk 0:02:55.6]}
4. Nc3 {[%clk 0:02:54.6]} 4... a6 {[%clk 0:02:56]} 5. e3 {[%clk 0:02:38.8]} 5...
Bf5 {[%clk 0:02:49.6]} 6. Be2 {[%clk 0:02:31.8]} 6... e6 {[%clk 0:02:48.9]} 7.
Nh4 {[%clk 0:02:32]} 7... Bg6 {[%clk 0:02:48.3]} 8. Qb3 {[%clk 0:02:31.3]} 8...
b5 {[%clk 0:02:41.9]} 9. c5 {[%clk 0:02:22.9]} 9... a5 {[%clk 0:02:37.7]} 10.
Nxg6 {[%clk 0:02:20.3]} 10... hxg6 {[%clk 0:02:37.2]} 11. Bd2 {[%clk 0:01:46.1]}
11... Be7 {[%clk 0:02:34.5]} 12. f4 {[%clk 0:01:38.6]} 12... Nbd7 {[%clk
0:02:17.1]} 13. Bf3 {[%clk 0:01:33.4]} 13... Ng8 {[%clk 0:01:45.8]} 14. e4
{[%clk 0:01:26.6]} 14... dxe4 {[%clk 0:01:44.6]} 15. Nxe4 {[%clk 0:01:22.2]}
15... Rc8 {[%clk 0:01:34.2]} 16. Qa3 {[%clk 0:01:01.8]} 16... a4 {[%clk
0:01:27.1]} 17. b3 {[%clk 0:00:56.7]} 17... Ngf6 {[%clk 0:01:20.9]} 18. Nd6+
{[%clk 0:00:42.3]} 18... Bxd6 {[%clk 0:01:20.5]} 19. cxd6 {[%clk 0:00:43.2]}
19... O-O {[%clk 0:01:09.3]} 20. bxa4 {[%clk 0:00:41]} 20... Qb6 {[%clk
0:01:02.4]} 21. O-O {[%clk 0:00:36.2]} 21... Qxd4+ {[%clk 0:00:54.3]} 22. Be3
{[%clk 0:00:36.5]} 22... Qxa4 {[%clk 0:00:54.1]} 23. Qxa4 {[%clk 0:00:23.7]}
23... bxa4 {[%clk 0:00:53.7]} 24. Rab1 {[%clk 0:00:23.4]} 24... Nd5 {[%clk
0:00:42.9]} 25. Bd2 {[%clk 0:00:23.9]} 25... Rb8 {[%clk 0:00:38.2]} 26. Ba5
{[%clk 0:00:13.7]} 26... Rfc8 {[%clk 0:00:29.3]} 27. g3 {[%clk 0:00:12.7]} 27...
f5 {[%clk 0:00:27.1]} 28. Rfc1 {[%clk 0:00:12]} 28... Kf7 {[%clk 0:00:24.5]} 29.
Rxb8 {[%clk 0:00:09.7]} 29... Nxb8 {[%clk 0:00:23.6]} 30. Bd1 {[%clk 0:00:06.5]}
30... Nd7 {[%clk 0:00:19.5]} 31. Bxa4 {[%clk 0:00:06.4]} 31... Ra8 {[%clk
0:00:19.5]} 32. Bxc6 {[%clk 0:00:06.6]} 32... Rxa5 {[%clk 0:00:19.2]} 33. Bxd7
{[%clk 0:00:07.2]} 33... Rxa2 {[%clk 0:00:14]} 34. Re1 {[%clk 0:00:07.3]} 34...
Rd2 {[%clk 0:00:12.1]} 35. Bxe6+ {[%clk 0:00:06.6]} 35... Kf6 {[%clk 0:00:10.6]}
36. Bg8 {[%clk 0:00:04.1]} 36... Nxf4 {[%clk 0:00:07.9]} 37. gxf4 {[%clk
0:00:03.2]} 37... Rxd6 {[%clk 0:00:08.1]} 38. Kf2 {[%clk 0:00:02]} 38... g5
{[%clk 0:00:08.1]} 39. fxg5+ {[%clk 0:00:02.2]} 39... Kxg5 {[%clk 0:00:08.5]}
40. Bc4 {[%clk 0:00:03]} 40... Rd2+ {[%clk 0:00:07.8]} 41. Be2 {[%clk
0:00:03.4]} 41... Kf4 {[%clk 0:00:07.7]} 42. Rc1 {[%clk 0:00:03.2]} 42... g5
{[%clk 0:00:07.7]} 43. Rc4+ {[%clk 0:00:03.8]} 43... Ke5 {[%clk 0:00:08.1]} 44.
Ke3 {[%clk 0:00:04.7]} 44... Rb2 {[%clk 0:00:07.6]} 45. Rc5+ {[%clk 0:00:04.7]}
45... Kf6 {[%clk 0:00:07.9]} 46. Ra5 {[%clk 0:00:05.6]} 46... Kg6 {[%clk
0:00:07.4]} 47. Ra6+ {[%clk 0:00:05.4]} 47... Kg7 {[%clk 0:00:07.7]} 48. Rc6
{[%clk 0:00:03.5]} 48... Rb4 {[%clk 0:00:07.2]} 49. Bd3 {[%clk 0:00:02.3]} 49...
Rh4 {[%clk 0:00:07.2]} 50. Rc2 {[%clk 0:00:02]} 50... Rh3+ {[%clk 0:00:06.3]}
51. Kd4 {[%clk 0:00:02.1]} 51... f4 {[%clk 0:00:06.5]} 52. Be4 {[%clk
0:00:02.2]} 52... g4 {[%clk 0:00:06.6]} 53. Ke5 {[%clk 0:00:02.3]} 53... g3
{[%clk 0:00:06.9]} 54. Kxf4 {[%clk 0:00:02.2]} 54... Rxh2 {[%clk 0:00:06.7]} 55.
Rc3 {[%clk 0:00:02.2]} 55... Kf6 {[%clk 0:00:06]} 56. Rxg3 {[%clk 0:00:02.3]}
56... Rf2+ {[%clk 0:00:06.2]} 57. Bf3 {[%clk 0:00:02.6]} 57... Rf1 {[%clk
0:00:05.3]} 58. Rh3 {[%clk 0:00:02.4]} 58... Rf2 {[%clk 0:00:05]} 59. Rh1 {[%clk
0:00:02.5]} 59... Rb2 {[%clk 0:00:04.3]} 60. Rc1 {[%clk 0:00:03]} 60... Rb5
{[%clk 0:00:03.3]} 61. Be4 {[%clk 0:00:03.1]} 61... Rb2 {[%clk 0:00:02.1]} 62.
Rc6+ {[%clk 0:00:03.6]} 62... Ke7 {[%clk 0:00:02.4]} 63. Ke5 {[%clk 0:00:04]}
63... Re2 {[%clk 0:00:02.7]} 64. Rc7+ {[%clk 0:00:03.8]} 64... Ke8 {[%clk
0:00:02.5]} 65. Ra7 {[%clk 0:00:04.7]} 65... Re1 {[%clk 0:00:02.2]} 66. Kf5
{[%clk 0:00:05.1]} 66... Kd8 {[%clk 0:00:02.2]} 67. Bd5 {[%clk 0:00:05.4]} 67...
Re7 {[%clk 0:00:02.2]} 68. Ra6 {[%clk 0:00:05.2]} 68... Kc7 {[%clk 0:00:02.5]}
69. Be6 {[%clk 0:00:05.1]} 69... Kb7 {[%clk 0:00:02.9]} 70. Ra2 {[%clk
0:00:04.8]} 70... Rh7 {[%clk 0:00:02.7]} 71. Ke5 {[%clk 0:00:05.2]} 71... Kb6
{[%clk 0:00:02.8]} 72. Kd6 {[%clk 0:00:05.4]} 72... Rh6 {[%clk 0:00:03.2]} 73.
Rb2+ {[%clk 0:00:05.7]} 73... Ka6 {[%clk 0:00:03.6]} 74. Kd5 {[%clk 0:00:05.3]}
74... Rh5+ {[%clk 0:00:03.2]} 75. Kc6 {[%clk 0:00:05.4]} 75... Rh6 {[%clk
0:00:03.6]} 76. Ra2# {[%clk 0:00:05.1]} 1-0

[Event "Early-Titled-Tuesday-Blitz-May-14-2024"]
[Site "Chess.com"]
[Date "2024.05.14"]
[Round "5"]
[White "Zurability"]
[Black "nabukatnezarr"]
[Result "1-0"]
[WhiteElo "2818"]
[BlackElo "2614"]
[TimeControl "180+1"]
[EndTime "8:59:19 PDT"]
[Termination "Zurability won by resignation"]

1. e4 {[%clk 0:03:00.9]} 1... e5 {[%clk 0:02:56.4]} 2. Nf3 {[%clk 0:03:00.9]}
2... Nc6 {[%clk 0:02:56.3]} 3. Bc4 {[%clk 0:03:01.6]} 3... Nf6 {[%clk
0:02:56.3]} 4. d3 {[%clk 0:03:01.7]} 4... Bc5 {[%clk 0:02:55.1]} 5. c3 {[%clk
0:03:00.7]} 5... d6 {[%clk 0:02:54.1]} 6. O-O {[%clk 0:02:59]} 6... a6 {[%clk
0:02:54]} 7. h3 {[%clk 0:02:59.2]} 7... Ba7 {[%clk 0:02:53.7]} 8. Bb3 {[%clk
0:02:59.3]} 8... h6 {[%clk 0:02:51.4]} 9. Nbd2 {[%clk 0:02:58.5]} 9... Qe7
{[%clk 0:02:43]} 10. Re1 {[%clk 0:02:58.3]} 10... g5 {[%clk 0:02:41.4]} 11. Nf1
{[%clk 0:02:41]} 11... g4 {[%clk 0:02:34.1]} 12. hxg4 {[%clk 0:02:41.1]} 12...
Bxg4 {[%clk 0:02:26.7]} 13. Be3 {[%clk 0:02:35]} 13... Rg8 {[%clk 0:01:53.1]}
14. Bxa7 {[%clk 0:02:34.3]} 14... Nxa7 {[%clk 0:01:53.5]} 15. Re3 {[%clk
0:02:30.4]} 15... O-O-O {[%clk 0:01:47.6]} 16. Qe1 {[%clk 0:02:13.7]} 16... Rg7
{[%clk 0:01:45.5]} 17. d4 {[%clk 0:01:56.8]} 17... Rdg8 {[%clk 0:01:42.4]} 18.
Ng3 {[%clk 0:01:43.5]} 18... h5 {[%clk 0:01:27.5]} 19. dxe5 {[%clk 0:01:34.4]}
19... dxe5 {[%clk 0:01:28.1]} 20. Qf1 {[%clk 0:00:50]} 20... Nd7 {[%clk
0:01:21.8]} 21. Ne1 {[%clk 0:00:40.1]} 21... Nc5 {[%clk 0:01:12.4]} 22. Nf5
{[%clk 0:00:32.4]} 22... Bxf5 {[%clk 0:01:11.4]} 23. exf5 {[%clk 0:00:33.3]}
23... Nb5 {[%clk 0:00:47.2]} 24. Qc4 {[%clk 0:00:30.5]} 24... b6 {[%clk
0:00:27.5]} 25. Qd5 {[%clk 0:00:22.4]} 25... Kb8 {[%clk 0:00:16.4]} 26. Qxe5
{[%clk 0:00:20.5]} 26... Qd8 {[%clk 0:00:06.4]} 27. Rd1 {[%clk 0:00:16.6]} 27...
Nd6 {[%clk 0:00:07.1]} 28. f6 {[%clk 0:00:15.2]} 28... Rg5 {[%clk 0:00:07.2]}
29. Qe7 {[%clk 0:00:15]} 29... Qc8 {[%clk 0:00:05.5]} 30. Rxd6 {[%clk
0:00:11.6]} 30... cxd6 {[%clk 0:00:06.4]} 31. Qxd6+ {[%clk 0:00:12.1]} 31... Qc7
{[%clk 0:00:07.1]} 32. Qxc7+ {[%clk 0:00:11.6]} 32... Kxc7 {[%clk 0:00:08]} 33.
Bxf7 {[%clk 0:00:11.6]} 33... Rf8 {[%clk 0:00:07.9]} 34. Re7+ {[%clk 0:00:11.8]}
34... Kd6 {[%clk 0:00:08.1]} 35. Nf3 {[%clk 0:00:11.5]} 35... Rf5 {[%clk
0:00:06.9]} 36. Ra7 {[%clk 0:00:09.5]} 36... Rxf6 {[%clk 0:00:05.4]} 37. Bxh5
{[%clk 0:00:10]} 37... Rf5 {[%clk 0:00:02]} 38. Bg4 {[%clk 0:00:09.7]} 38... Rf4
{[%clk 0:00:02.3]} 39. Bh3 {[%clk 0:00:09.8]} 39... Kc6 {[%clk 0:00:03]} 40.
Nd4+ {[%clk 0:00:09.5]} 40... Kd5 {[%clk 0:00:02.7]} 41. f3 {[%clk 0:00:09.8]}
41... Kc4 {[%clk 0:00:03]} 42. Re7 {[%clk 0:00:08.4]} 42... Kd3 {[%clk
0:00:03.3]} 43. g3 {[%clk 0:00:06.8]} 43... R4f7 {[%clk 0:00:03]} 44. Bf1+
{[%clk 0:00:07]} 44... Kd2 {[%clk 0:00:02.9]} 45. Re2+ {[%clk 0:00:07.5]} 45...
Kc1 {[%clk 0:00:03.8]} 46. b4 {[%clk 0:00:06.5]} 46... Kb1 {[%clk 0:00:04.7]}
47. bxc5 {[%clk 0:00:06.6]} 47... bxc5 {[%clk 0:00:05.6]} 48. Nb3 {[%clk
0:00:07.2]} 48... c4 {[%clk 0:00:04.6]} 49. Nd4 {[%clk 0:00:06]} 49... Rg7
{[%clk 0:00:05]} 50. Rg2 {[%clk 0:00:06.2]} 50... Rd7 {[%clk 0:00:04.5]} 51.
Bxc4 {[%clk 0:00:06.5]} 51... Re8 {[%clk 0:00:04.6]} 52. Bd3+ {[%clk 0:00:06.8]}
52... Kc1 {[%clk 0:00:05.2]} 53. Nb3+ {[%clk 0:00:06.8]} 53... Kd1 {[%clk
0:00:05.3]} 54. Rd2+ {[%clk 0:00:06.9]} 54... Ke1 {[%clk 0:00:05.9]} 55. Kg2
{[%clk 0:00:03.5]} 55... a5 {[%clk 0:00:05.9]} 56. a4 {[%clk 0:00:03.4]} 56...
Rb8 {[%clk 0:00:05.6]} 57. Re2+ {[%clk 0:00:03.7]} 57... Kd1 {[%clk 0:00:05.5]}
58. Nd4 {[%clk 0:00:04.4]} 58... Rb1 {[%clk 0:00:04]} 59. Rf2 {[%clk 0:00:04.5]}
59... Rc1 {[%clk 0:00:03.6]} 60. Rf1+ {[%clk 0:00:04.4]} 60... Kd2 {[%clk
0:00:03.8]} 61. Nb3+ {[%clk 0:00:05]} 61... Kxd3 {[%clk 0:00:03.8]} 62. Nxc1+
{[%clk 0:00:05.8]} 62... Kxc3 {[%clk 0:00:04.5]} 63. Ne2+ {[%clk 0:00:06.5]}
63... Kd2 {[%clk 0:00:04.9]} 64. Nf4 {[%clk 0:00:07.4]} 64... Rb7 {[%clk
0:00:05]} 65. Rf2+ {[%clk 0:00:07.9]} 65... Kc3 {[%clk 0:00:04.9]} 66. g4 {[%clk
0:00:08.3]} 66... Kb3 {[%clk 0:00:05]} 67. g5 {[%clk 0:00:08.3]} 67... Kxa4
{[%clk 0:00:05.7]} 68. Ne6 {[%clk 0:00:07]} 68... Re7 {[%clk 0:00:05.8]} 69. Nd4
{[%clk 0:00:04.3]} 69... Rd7 {[%clk 0:00:04.4]} 70. Nc6 {[%clk 0:00:02.8]} 70...
Kb5 {[%clk 0:00:04.1]} 71. Nxa5 {[%clk 0:00:03.1]} 71... Kxa5 {[%clk 0:00:04.3]}
72. f4 {[%clk 0:00:03.8]} 72... Kb5 {[%clk 0:00:04.7]} 73. Kg3 {[%clk
0:00:03.9]} 73... Kc5 {[%clk 0:00:05.3]} 74. Kg4 {[%clk 0:00:04.6]} 74... Rg7
{[%clk 0:00:05.3]} 75. f5 {[%clk 0:00:05.1]} 75... Ra7 {[%clk 0:00:05.6]} 76. f6
{[%clk 0:00:05.6]} 76... Ra1 {[%clk 0:00:06.2]} 77. f7 {[%clk 0:00:05.5]} 77...
Rg1+ {[%clk 0:00:06.8]} 78. Kf5 {[%clk 0:00:05.9]} 1-0

[Event "Early-Titled-Tuesday-Blitz-May-14-2024"]
[Site "Chess.com"]
[Date "2024.05.14"]
[Round "5"]
[White "malakismayil"]
[Black "Malikova777"]
[Result "1-0"]
[WhiteElo "2531"]
[BlackElo "2334"]
[TimeControl "180+1"]
[EndTime "8:59:21 PDT"]
[Termination "malakismayil won on time"]

1. e4 {[%clk 0:03:00.9]} 1... e6 {[%clk 0:02:55.4]} 2. d4 {[%clk 0:03:00.3]}
2... d5 {[%clk 0:02:55.4]} 3. Nd2 {[%clk 0:03:00.8]} 3... c5 {[%clk 0:02:54.5]}
4. exd5 {[%clk 0:02:59.4]} 4... Qxd5 {[%clk 0:02:55.4]} 5. Ngf3 {[%clk
0:02:58.2]} 5... cxd4 {[%clk 0:02:55.7]} 6. Bc4 {[%clk 0:02:58.7]} 6... Qd6
{[%clk 0:02:56.1]} 7. O-O {[%clk 0:02:59.5]} 7... Nf6 {[%clk 0:02:55.7]} 8. Nb3
{[%clk 0:02:59.8]} 8... Nc6 {[%clk 0:02:55.9]} 9. Nbxd4 {[%clk 0:02:59.9]} 9...
Nxd4 {[%clk 0:02:56.8]} 10. Nxd4 {[%clk 0:02:59.7]} 10... a6 {[%clk 0:02:56.9]}
11. c3 {[%clk 0:02:59.6]} 11... Qc7 {[%clk 0:02:55.8]} 12. Qe2 {[%clk
0:02:57.5]} 12... Bd6 {[%clk 0:02:53.6]} 13. h3 {[%clk 0:02:56.1]} 13... O-O
{[%clk 0:02:53.2]} 14. Bg5 {[%clk 0:02:53.9]} 14... Ne4 {[%clk 0:02:53]} 15.
Qxe4 {[%clk 0:02:45.4]} 15... Qxc4 {[%clk 0:02:52.3]} 16. Rfe1 {[%clk
0:02:42.8]} 16... h6 {[%clk 0:02:25]} 17. Bh4 {[%clk 0:02:32.3]} 17... Rb8
{[%clk 0:02:18.8]} 18. Qe2 {[%clk 0:02:25.8]} 18... b5 {[%clk 0:02:10.4]} 19.
Qd2 {[%clk 0:02:21.1]} 19... Bc7 {[%clk 0:02:03.9]} 20. Bg3 {[%clk 0:02:15.6]}
20... Bxg3 {[%clk 0:02:02.6]} 21. fxg3 {[%clk 0:02:16.5]} 21... Bb7 {[%clk
0:02:00.3]} 22. Qe2 {[%clk 0:02:08.8]} 22... Bd5 {[%clk 0:01:54.7]} 23. Qf2
{[%clk 0:02:07.9]} 23... b4 {[%clk 0:01:52.6]} 24. Rec1 {[%clk 0:02:02.2]} 24...
bxc3 {[%clk 0:01:48.2]} 25. Rxc3 {[%clk 0:02:03.1]} 25... Qa4 {[%clk 0:01:47.2]}
26. a3 {[%clk 0:01:56]} 26... Rfc8 {[%clk 0:01:42.3]} 27. Rac1 {[%clk 0:01:54]}
27... Rxc3 {[%clk 0:01:38.1]} 28. Rxc3 {[%clk 0:01:54.9]} 28... e5 {[%clk
0:01:34.6]} 29. Nf3 {[%clk 0:01:45.2]} 29... f6 {[%clk 0:01:30.5]} 30. b4 {[%clk
0:01:41.7]} 30... Qd1+ {[%clk 0:01:25.5]} 31. Kh2 {[%clk 0:01:40.3]} 31... Rd8
{[%clk 0:01:22]} 32. Qb6 {[%clk 0:01:32.8]} 32... Bxf3 {[%clk 0:01:15.8]} 33.
Rxf3 {[%clk 0:01:33.7]} 33... Qd6 {[%clk 0:01:12.1]} 34. Qb7 {[%clk 0:01:27.7]}
34... Kh7 {[%clk 0:01:01.8]} 35. h4 {[%clk 0:01:21.1]} 35... Rd7 {[%clk
0:00:59.9]} 36. Qe4+ {[%clk 0:01:19.7]} 36... Kh8 {[%clk 0:00:58.5]} 37. Rc3
{[%clk 0:01:19.5]} 37... Rd8 {[%clk 0:00:56.3]} 38. Qb7 {[%clk 0:01:12.7]} 38...
Rd7 {[%clk 0:00:44.8]} 39. Qa8+ {[%clk 0:01:09.3]} 39... Rd8 {[%clk 0:00:44.3]}
40. Qf3 {[%clk 0:01:08.2]} 40... Qe6 {[%clk 0:00:38.8]} 41. Rc6 {[%clk
0:01:05.8]} 41... Rd6 {[%clk 0:00:38.6]} 42. Rc7 {[%clk 0:01:04.7]} 42... e4
{[%clk 0:00:33.6]} 43. Qe3 {[%clk 0:01:02.9]} 43... Qe5 {[%clk 0:00:24.4]} 44.
Qa7 {[%clk 0:00:18.2]} 44... f5 {[%clk 0:00:23.5]} 45. Re7 {[%clk 0:00:15.2]}
45... Qf6 {[%clk 0:00:20.7]} 46. Qc7 {[%clk 0:00:07.4]} 46... Rd3 {[%clk
0:00:19.7]} 47. Re8+ {[%clk 0:00:01.8]} 47... Kh7 {[%clk 0:00:19.7]} 48. Qc8
{[%clk 0:00:02.6]} 48... Qd6 {[%clk 0:00:14.3]} 49. Rh8+ {[%clk 0:00:02.2]}
49... Kg6 {[%clk 0:00:13.9]} 50. Qe8+ {[%clk 0:00:03.1]} 50... Kf6 {[%clk
0:00:11.8]} 51. Rf8+ {[%clk 0:00:03.8]} 51... Qxf8 {[%clk 0:00:10.9]} 52. Qxf8+
{[%clk 0:00:04.7]} 52... Ke5 {[%clk 0:00:11.5]} 53. Qxg7+ {[%clk 0:00:05.2]}
53... Kd5 {[%clk 0:00:11.5]} 54. Qd7+ {[%clk 0:00:05.1]} 54... Ke5 {[%clk
0:00:11.5]} 55. Qe7+ {[%clk 0:00:05.4]} 55... Kd4 {[%clk 0:00:11.7]} 56. Qf6+
{[%clk 0:00:05.1]} 56... Kc4 {[%clk 0:00:09.4]} 57. Qxf5 {[%clk 0:00:05.2]}
57... e3 {[%clk 0:00:10]} 58. Qe4+ {[%clk 0:00:05.4]} 58... Kc3 {[%clk
0:00:10.3]} 59. g4 {[%clk 0:00:04.7]} 59... Kd2 {[%clk 0:00:09.9]} 60. Qf4
{[%clk 0:00:04.5]} 60... Kd1 {[%clk 0:00:07.4]} 61. Qf1+ {[%clk 0:00:04]} 61...
Kd2 {[%clk 0:00:07.8]} 62. Qf4 {[%clk 0:00:04.1]} 62... Kd1 {[%clk 0:00:07.9]}
63. Qe4 {[%clk 0:00:02.7]} 63... Kd2 {[%clk 0:00:06.9]} 64. g5 {[%clk
0:00:03.2]} 64... e2 {[%clk 0:00:06.8]} 65. Qf4+ {[%clk 0:00:02.1]} 65... Kd1
{[%clk 0:00:06.5]} 66. Qe4 {[%clk 0:00:01.6]} 66... e1=Q {[%clk 0:00:06.4]} 67.
Qxd3+ {[%clk 0:00:01.8]} 67... Kc1 {[%clk 0:00:06.9]} 68. Qg3 {[%clk 0:00:02.2]}
68... Qe6 {[%clk 0:00:03.8]} 69. g6 {[%clk 0:00:02.2]} 69... Qg8 {[%clk
0:00:00.2]} 70. g7 {[%clk 0:00:02.6]} 1-0

[Event "Early-Titled-Tuesday-Blitz-May-14-2024"]
[Site "Chess.com"]
[Date "2024.05.14"]
[Round "5"]
[White "Niktlt"]
[Black "Happy1712Drummer"]
[Result "0-1"]
[WhiteElo "2695"]
[BlackElo "2446"]
[TimeControl "180+1"]
[EndTime "8:59:24 PDT"]
[Termination "Happy1712Drummer won by resignation"]

1. d4 {[%clk 0:03:00.9]} 1... d5 {[%clk 0:02:58.4]} 2. c4 {[%clk 0:02:59.7]}
2... e6 {[%clk 0:02:58.7]} 3. Nc3 {[%clk 0:02:59.5]} 3... c5 {[%clk 0:02:58]} 4.
cxd5 {[%clk 0:02:57.1]} 4... exd5 {[%clk 0:02:58.9]} 5. e3 {[%clk 0:02:56.9]}
5... Nf6 {[%clk 0:02:56.5]} 6. Nf3 {[%clk 0:02:56.5]} 6... Nc6 {[%clk
0:02:56.7]} 7. Bd3 {[%clk 0:02:55.9]} 7... c4 {[%clk 0:02:52.5]} 8. Bc2 {[%clk
0:02:55.2]} 8... Bb4 {[%clk 0:02:50.4]} 9. Bd2 {[%clk 0:02:55.1]} 9... O-O
{[%clk 0:02:49.5]} 10. O-O {[%clk 0:02:55]} 10... Re8 {[%clk 0:02:48]} 11. a3
{[%clk 0:02:52.9]} 11... Bd6 {[%clk 0:02:44.9]} 12. Re1 {[%clk 0:02:44.3]} 12...
Rb8 {[%clk 0:02:43.8]} 13. e4 {[%clk 0:02:37.3]} 13... dxe4 {[%clk 0:02:43.6]}
14. Nxe4 {[%clk 0:02:38.2]} 14... Nxe4 {[%clk 0:02:35]} 15. Bxe4 {[%clk
0:02:39.1]} 15... Qc7 {[%clk 0:02:34.6]} 16. Bxh7+ {[%clk 0:02:30.1]} 16... Kxh7
{[%clk 0:02:25.7]} 17. Ng5+ {[%clk 0:02:27.5]} 17... Kg6 {[%clk 0:02:22.2]} 18.
Rxe8 {[%clk 0:02:27.2]} 18... Bxh2+ {[%clk 0:02:14]} 19. Kh1 {[%clk 0:02:22.4]}
19... Bf4 {[%clk 0:01:53.6]} 20. Nf3 {[%clk 0:02:11.7]} 20... Bg4 {[%clk
0:01:48.2]} 21. Rxb8 {[%clk 0:02:10.1]} 21... Qxb8 {[%clk 0:01:48.5]} 22. Qc2+
{[%clk 0:02:04.1]} 22... f5 {[%clk 0:01:33.1]} 23. Nh4+ {[%clk 0:01:58.3]} 23...
Kf6 {[%clk 0:01:31]} 24. Qc3 {[%clk 0:01:40.6]} 24... Bxd2 {[%clk 0:01:24.2]}
25. Qxd2 {[%clk 0:01:41.5]} 25... Qh8 {[%clk 0:01:24.2]} 26. g3 {[%clk 0:01:39]}
26... g5 {[%clk 0:01:24.5]} 27. Kg1 {[%clk 0:01:08.2]} 27... gxh4 {[%clk
0:01:22.3]} 28. Qf4 {[%clk 0:01:08.2]} 28... hxg3 {[%clk 0:01:10.3]} 29. fxg3
{[%clk 0:00:58.3]} 29... Kg6 {[%clk 0:00:58.6]} 30. Qd6+ {[%clk 0:00:42]} 30...
Qf6 {[%clk 0:00:58.3]} 31. Qxf6+ {[%clk 0:00:37.7]} 31... Kxf6 {[%clk
0:00:59.2]} 32. Rc1 {[%clk 0:00:35.8]} 32... b5 {[%clk 0:00:53.2]} 33. Kf2
{[%clk 0:00:33.5]} 33... Nxd4 {[%clk 0:00:52.8]} 34. a4 {[%clk 0:00:31.6]} 34...
Nb3 {[%clk 0:00:43.8]} 35. Rc3 {[%clk 0:00:28.8]} 35... a6 {[%clk 0:00:41.5]}
36. axb5 {[%clk 0:00:25]} 36... axb5 {[%clk 0:00:42.4]} 37. Re3 {[%clk 0:00:23]}
37... Nc5 {[%clk 0:00:39.3]} 38. Re8 {[%clk 0:00:22.6]} 38... Nd3+ {[%clk
0:00:39.1]} 39. Ke3 {[%clk 0:00:23.1]} 39... Nxb2 {[%clk 0:00:39.1]} 40. Rb8
{[%clk 0:00:22.6]} 40... Nd1+ {[%clk 0:00:23.6]} 41. Kd2 {[%clk 0:00:19.7]}
41... c3+ {[%clk 0:00:17]} 42. Kc2 {[%clk 0:00:15.4]} 42... b4 {[%clk
0:00:13.6]} 43. Rxb4 {[%clk 0:00:13.8]} 43... Ne3+ {[%clk 0:00:13.9]} 44. Kc1
{[%clk 0:00:11.6]} 44... Ke5 {[%clk 0:00:06.1]} 45. Ra4 {[%clk 0:00:09.7]} 45...
Be2 {[%clk 0:00:05.1]} 46. Ra3 {[%clk 0:00:08]} 46... Nd5 {[%clk 0:00:04.8]} 47.
Kc2 {[%clk 0:00:07.5]} 47... Bc4 {[%clk 0:00:04.7]} 48. Ra5 {[%clk 0:00:07.1]}
48... Ke4 {[%clk 0:00:04.1]} 49. Ra4 {[%clk 0:00:06.7]} 49... Kd4 {[%clk
0:00:04.7]} 50. Ra8 {[%clk 0:00:06.5]} 50... Ne3+ {[%clk 0:00:05.1]} 51. Kc1
{[%clk 0:00:06.9]} 51... Bd5 {[%clk 0:00:05]} 52. Rc8 {[%clk 0:00:06.6]} 52...
Kd3 {[%clk 0:00:05]} 53. Rd8 {[%clk 0:00:06.4]} 53... Kc4 {[%clk 0:00:03]} 54.
Rc8+ {[%clk 0:00:06.1]} 54... Kd4 {[%clk 0:00:03.4]} 55. Rd8 {[%clk 0:00:06.3]}
55... c2 {[%clk 0:00:03.7]} 56. Rc8 {[%clk 0:00:06.7]} 56... Ke4 {[%clk
0:00:04]} 57. Rc3 {[%clk 0:00:06.7]} 57... Kf3 {[%clk 0:00:03.6]} 58. Kd2 {[%clk
0:00:06.6]} 58... Kf2 {[%clk 0:00:01.9]} 59. Kd3 {[%clk 0:00:03.3]} 59... Be4+
{[%clk 0:00:02.4]} 60. Kd2 {[%clk 0:00:03.5]} 60... Ng4 {[%clk 0:00:02.5]} 61.
Kc1 {[%clk 0:00:03.1]} 61... Ne5 {[%clk 0:00:03]} 62. Kd2 {[%clk 0:00:03.1]}
62... Nf3+ {[%clk 0:00:03.6]} 63. Kc1 {[%clk 0:00:03.5]} 63... Kxg3 {[%clk
0:00:04.1]} 64. Rc7 {[%clk 0:00:02]} 64... f4 {[%clk 0:00:04.7]} 65. Rg7+ {[%clk
0:00:02.9]} 65... Kf2 {[%clk 0:00:05.2]} 66. Rf7 {[%clk 0:00:03.5]} 66... Ke3
{[%clk 0:00:04.6]} 67. Rc7 {[%clk 0:00:03]} 67... Nd4 {[%clk 0:00:04.8]} 68.
Rc3+ {[%clk 0:00:02.8]} 68... Bd3 {[%clk 0:00:04.8]} 69. Rxc2 {[%clk 0:00:00.4]}
69... Bxc2 {[%clk 0:00:04.6]} 70. Kb2 {[%clk 0:00:01.3]} 70... f3 {[%clk
0:00:04.9]} 71. Kc3 {[%clk 0:00:02.2]} 71... f2 {[%clk 0:00:05.4]} 72. Kc4
{[%clk 0:00:03.1]} 72... f1=Q+ {[%clk 0:00:05.9]} 73. Kd5 {[%clk 0:00:04]} 73...
Qb5+ {[%clk 0:00:06.2]} 74. Kd6 {[%clk 0:00:04.9]} 74... Qc6+ {[%clk 0:00:06.5]}
75. Ke7 {[%clk 0:00:05.4]} 75... Nf5+ {[%clk 0:00:06.7]} 76. Kf7 {[%clk
0:00:05.9]} 76... Qd6 {[%clk 0:00:06.6]} 77. Kg8 {[%clk 0:00:06.8]} 0-1